bitfinex-derivatives/quotes_BTCF0:USTF0_20241227
["timestamp","ask_amount","ask_price","bid_price","bid_amount"]
[1735268394894,0.052104,96091.0,96089.0,0.26129036]
[1735268395096,0.052104,96091.0,96090.0,0.14072651]
[1735268395294,0.052104,96091.0,96090.0,0.26129036]
[1735268396601,0.24579601,96100.0,96090.0,0.30819053]
[1735268396802,0.052103,96092.0,96091.0,0.18762668]
[1735268396990,0.052103,96092.0,96091.0,0.30819053]
[1735268397391,0.02865292,96092.0,96091.0,0.30819053]
[1735268398093,0.02865292,96092.0,96091.0,0.30819052]
[1735268398295,0.02865292,96092.0,96091.0,0.33750311]
[1735268398695,0.18325417,96100.0,96091.0,0.58426883]
[1735268398896,0.18325417,96100.0,96092.0,0.21694182]
[1735268399096,0.052102,96094.0,96093.0,0.33750567]
[1735268399290,0.18381418,96100.0,96093.0,0.33750567]
[1735268399490,0.18325417,96100.0,96094.0,0.21694182]
[1735268399694,0.18325417,96100.0,96095.0,0.21694182]
[1735268399895,0.052101,96097.0,96096.0,0.33750567]
[1735268400603,0.08931007,96100.0,96096.0,0.30102049]
[1735268400803,0.0521,96099.0,96097.0,0.18045664]
[1735268401003,0.0521,96099.0,96098.0,0.12052609]
[1735268401205,0.0521,96099.0,96098.0,0.30102039]
[1735268402605,0.08931007,96100.0,96098.0,0.30102039]
[1735268402904,0.14140907,96100.0,96099.0,0.18045654]
[1735268403304,0.08278168,96100.0,96099.0,0.33749966]
[1735268404009,0.05672505,96100.0,96099.0,0.3375025]
[1735268405307,0.03796428,96100.0,96099.0,0.3375025]
[1735268406093,0.4446641,96106.0,96099.0,0.3375025]
[1735268406401,0.052098,96101.0,96100.0,0.21693865]
[1735268406607,0.052098,96101.0,96100.0,0.3375025]
[1735268406809,0.4968298,96106.0,96100.0,0.20265924]
[1735268407108,0.45059206,96106.0,96101.0,0.21673658]
[1735268407300,0.45059206,96106.0,96102.0,0.21673658]
[1735268407503,0.052096,96105.0,96103.0,0.33729935]
[1735268407802,0.052096,96105.0,96104.0,0.33729935]
[1735268408411,0.33773036,96106.0,96104.0,0.33729935]
[1735268408601,0.34358777,96106.0,96105.0,0.2167355]
[1735268408804,0.28496101,96106.0,96105.0,0.33729935]
[1735268409203,0.25239044,96106.0,96105.0,0.33729935]
[1735268409801,0.25239044,96106.0,96105.0,0.33729988]
[1735268411100,0.25239044,96106.0,96105.0,0.31180884]
[1735268411497,0.25339044,96106.0,96105.0,0.30102064]
[1735268412297,0.22993886,96106.0,96105.0,0.30102064]
[1735268412701,0.22993886,96106.0,96105.0,0.2215526]
[1735268412907,0.22993886,96106.0,96105.0,0.28474291]
[1735268413208,0.17130956,96106.0,96105.0,0.22611288]
[1735268413412,0.12570806,96106.0,96105.0,0.30102799]
[1735268414407,0.1052617,96106.0,96105.0,0.05642446]
[1735268414712,0.0521,96098.0,96097.0,0.22406539]
[1735268415602,0.0521,96098.0,96077.0,0.0825]
[1735268415603,0.052098,96101.0,96100.0,0.18673928]
[1735268416116,0.00194789,96106.0,96100.0,0.18673928]
[1735268416302,0.0939441,96130.0,96101.0,0.2435]
[1735268416503,0.0939441,96111.0,96101.0,0.2435]
[1735268416799,0.0939441,96120.0,96101.0,0.80678492]
[1735268416999,0.14495418,96137.0,96110.0,0.0939441]
[1735268417205,0.19723765,96137.0,96116.0,0.05209]
[1735268417503,0.19723765,96137.0,96110.0,0.3939441]
[1735268417706,0.19723765,96137.0,96121.0,0.052087]
[1735268417908,0.14515865,96137.0,96123.0,0.052086]
[1735268418309,0.14515865,96137.0,96123.0,0.352086]
[1735268418915,0.05228347,96137.0,96130.0,0.37328062]
[1735268419215,0.0939441,96140.0,96131.0,0.0875]
[1735268419713,0.04836652,96140.0,96131.0,0.0875]
[1735268419911,0.052078,96139.0,96131.0,0.0875]
[1735268420213,0.34992,96184.0,96137.0,0.37328062]
[1735268420214,0.052073,96148.0,96137.0,0.37328062]
[1735268420610,0.052078,96139.0,96137.0,0.37328062]
[1735268421016,0.02863959,96139.0,96137.0,0.37328062]
[1735268421211,0.02863959,96139.0,96138.0,0.03645901]
[1735268421417,0.0939441,96150.0,96138.0,0.29974393]
[1735268421615,0.0939441,96150.0,96139.0,0.03645901]
[1735268421810,0.052077,96140.0,96138.0,0.26328492]
[1735268422112,0.052077,96140.0,96139.0,0.03645875]
[1735268422414,0.02339594,96140.0,96139.0,0.06250057]
[1735268422618,0.02339594,96140.0,96139.0,0.09505285]
[1735268422914,0.02339594,96140.0,96139.0,0.12760513]
[1735268423320,0.02339594,96140.0,96139.0,0.39089005]
[1735268423502,0.1454249,96150.0,96139.0,0.39089005]
[1735268423810,0.1454249,96150.0,96140.0,0.09505349]
[1735268423811,0.052073,96148.0,96140.0,0.09505349]
[1735268424011,0.052073,96148.0,96141.0,0.05859474]
[1735268424216,0.052073,96148.0,96142.0,0.12760577]
[1735268424421,0.052068,96158.0,96147.0,0.052073]
[1735268424609,0.0939441,96160.0,96148.0,0.25520652]
[1735268424915,0.0939441,96158.0,96149.0,0.04557335]
[1735268425212,0.0939441,96158.0,96147.0,0.052073]
[1735268425409,0.0939441,96158.0,96143.0,0.0818]
[1735268425610,0.052073,96148.0,96143.0,0.0818]
[1735268425809,0.052074,96147.0,96143.0,0.0818]
[1735268426122,0.052076,96142.0,96141.0,0.37440216]
[1735268426922,0.052076,96142.0,96141.0,0.37240216]
[1735268427526,0.0939441,96151.0,96138.0,0.18604573]
[1735268427720,0.052078,96139.0,96138.0,0.18604573]
[1735268428813,0.052078,96139.0,96133.0,0.18604573]
[1735268429020,0.052078,96139.0,96128.0,0.24806097]
[1735268429021,0.052083,96129.0,96128.0,0.24806097]
[1735268429914,0.052083,96129.0,96128.0,0.15504065]
[1735268430115,0.052083,96129.0,96113.0,0.15504065]
[1735268430325,0.052091,96114.0,96113.0,0.15504065]
[1735268431420,0.052091,96114.0,96113.0,0.001]
[1735268432414,0.10386021,96114.0,96113.0,0.001]
[1735268432624,0.052095,96107.0,96104.0,7.536e-05]
[1735268433715,0.052095,96107.0,96104.0,0.00207536]
[1735268434225,0.052096,96106.0,96104.0,0.00407536]
[1735268434631,0.052096,96106.0,96104.0,0.004]
[1735268439818,0.0882,96105.0,96104.0,0.004]
[1735268440025,0.0882,96105.0,96088.0,0.37240216]
[1735268440026,0.052105,96089.0,96088.0,0.37240216]
[1735268440231,0.052105,96089.0,96088.0,0.13656315]
[1735268440534,0.052113,96075.0,96068.0,0.00156122]
[1735268440725,0.052113,96075.0,96074.0,0.36557251]
[1735268441230,0.052113,96075.0,96074.0,0.15591251]
[1735268441538,0.052116,96068.0,96067.0,0.47752364]
[1735268441736,0.052115,96071.0,96060.0,0.00068]
[1735268441922,0.1878882,96070.0,96046.0,0.36002825]
[1735268442122,0.052127,96048.0,96046.0,0.36002825]
[1735268443419,0.052129,96045.0,96037.0,0.00168486]
[1735268443625,0.0939441,96047.0,96037.0,0.00168486]
[1735268443926,0.05213,96043.0,96037.0,0.00168486]
[1735268444118,0.0939441,96047.0,96037.0,0.00168486]
[1735268444319,0.05213,96043.0,96037.0,0.00168486]
[1735268444927,0.05213,96043.0,96037.0,0.00668486]
[1735268446436,0.05213,96043.0,96037.0,0.00268486]
[1735268446733,0.05213,96043.0,96037.0,0.01168486]
[1735268447042,0.05213,96043.0,96037.0,0.00268486]
[1735268447424,0.052133,96039.0,96037.0,0.00268486]
[1735268447827,0.052133,96039.0,96037.0,0.00368486]
[1735268448530,0.052133,96039.0,96037.0,0.00168486]
[1735268448734,0.052133,96039.0,96037.0,0.00368486]
[1735268449435,0.0939441,96060.0,96037.0,0.00368486]
[1735268449436,0.06131898,96060.0,96038.0,0.33758191]
[1735268449638,0.052128,96046.0,96039.0,0.33758191]
[1735268449940,0.0613592,96049.0,96040.0,0.33758191]
[1735268450235,0.0613592,96049.0,96041.0,0.30108656]
[1735268450236,0.05213,96042.0,96041.0,0.30108656]
[1735268450440,0.05213,96042.0,96041.0,0.25546737]
[1735268451140,0.05213,96042.0,96041.0,0.12056496]
[1735268451340,0.05213,96042.0,96041.0,0.24540347]
[1735268451639,0.05313,96042.0,96041.0,0.12483851]
[1735268452232,0.001,96042.0,96041.0,0.12483851]
[1735268452542,0.001,96042.0,96041.0,0.05995435]
[1735268452729,0.0939441,96060.0,96041.0,0.09645042]
[1735268452930,0.0939441,96060.0,96048.0,0.052127]
[1735268453126,0.05224428,96067.0,96049.0,0.26935042]
[1735268453435,0.052117,96068.0,96053.0,0.052124]
[1735268453634,0.052117,96068.0,96054.0,0.09645042]
[1735268453939,0.052117,96068.0,96055.0,0.09645042]
[1735268454129,0.0574521,96063.0,96056.0,0.09645042]
[1735268454439,0.0939441,96070.0,96062.0,0.05212]
[1735268454636,0.0939441,96070.0,96063.0,0.09645042]
[1735268454840,0.0939441,96070.0,96064.0,0.09645042]
[1735268455137,0.0939441,96070.0,96065.0,0.09645042]
[1735268455337,0.0939441,96070.0,96066.0,0.09645042]
[1735268455538,0.0939441,96070.0,96067.0,0.09645042]
[1735268455741,0.052113,96075.0,96068.0,0.09645042]
[1735268455940,0.052113,96075.0,96069.0,0.09645042]
[1735268456137,0.35044001,96080.0,96063.0,0.0895]
[1735268456138,0.00056001,96080.0,96070.0,0.09645042]
[1735268456442,0.052109,96082.0,96071.0,0.0964402]
[1735268456631,0.052109,96082.0,96072.0,0.0964402]
[1735268456937,0.052109,96082.0,96068.0,0.052116]
[1735268456938,0.052109,96082.0,96073.0,0.0964402]
[1735268457139,0.052109,96082.0,96074.0,0.0964402]
[1735268457329,0.052109,96082.0,96075.0,0.15274901]
[1735268457527,0.052109,96082.0,96076.0,0.05994901]
[1735268457831,0.052109,96082.0,96077.0,0.05994901]
[1735268458030,0.052109,96082.0,96078.0,0.05994901]
[1735268458339,0.053109,96082.0,96079.0,0.05994901]
[1735268458539,0.053109,96082.0,96075.0,0.0928]
[1735268458540,0.053109,96082.0,96080.0,0.05994901]
[1735268458744,0.053109,96082.0,96081.0,0.05994901]
[1735268460631,0.0531463,96084.0,96081.0,0.05994901]
[1735268460832,0.0939441,96110.0,96082.0,0.05994901]
[1735268461127,0.0939441,96110.0,96078.0,0.001]
[1735268461128,0.052093,96111.0,96093.0,0.052103]
[1735268461434,0.0939441,96110.0,96094.0,0.14314901]
[1735268461641,0.0939441,96110.0,96104.0,0.01286091]
[1735268461936,0.1460321,96120.0,96105.0,0.15074901]
[1735268462128,0.0939441,96120.0,96107.0,0.01285952]
[1735268462329,0.0939441,96120.0,96113.0,0.01285952]
[1735268462532,0.0939441,96120.0,96112.0,0.01285952]
[1735268462731,0.0939441,96120.0,96107.0,0.01285952]
[1735268463138,0.0939441,96120.0,96113.0,0.01285952]
[1735268463729,0.0939441,96120.0,96106.0,0.01285952]
[1735268463932,0.05209,96117.0,96113.0,0.01285952]
[1735268464437,0.0939441,96120.0,96114.0,0.07280641]
[1735268464641,0.0939441,96120.0,96108.0,0.01285334]
[1735268464642,0.052091,96115.0,96108.0,0.01285334]
[1735268464829,0.3939441,96120.0,96086.0,0.085]
[1735268464830,0.052097,96105.0,96086.0,0.085]
[1735268465032,0.0939441,96100.0,96087.0,0.01129667]
[1735268465236,0.0939441,96100.0,96088.0,0.01129667]
[1735268465437,0.052101,96096.0,96089.0,0.01129667]
[1735268465641,0.052103,96093.0,96090.0,0.01129667]
[1735268465840,0.0939441,96100.0,96086.0,0.085]
[1735268466140,0.052101,96098.0,96087.0,0.01131898]
[1735268466335,0.052101,96098.0,96088.0,0.01131898]
[1735268466530,0.052101,96098.0,96086.0,0.085]
[1735268466531,0.052101,96098.0,96089.0,0.01131898]
[1735268466736,0.052101,96098.0,96090.0,0.01131898]
[1735268467039,0.14590147,96100.0,96091.0,0.01131898]
[1735268467245,0.052102,96095.0,96092.0,0.01131898]
[1735268467541,0.052102,96095.0,96093.0,0.01131898]
[1735268467742,0.052102,96095.0,96094.0,0.01131898]
[1735268468338,0.052102,96095.0,96094.0,0.01137611]
[1735268468640,0.14590147,96100.0,96092.0,0.001]
[1735268468641,0.052102,96094.0,96092.0,0.001]
[1735268468839,0.03333656,96094.0,96092.0,0.001]
[1735268470038,0.14590147,96100.0,96090.0,0.001]
[1735268470240,0.14590147,96100.0,96097.0,0.01298156]
[1735268470441,0.0521,96099.0,96090.0,0.001]
[1735268470640,0.0521,96099.0,96086.0,0.085]
[1735268470641,0.0521,96099.0,96094.0,0.001]
[1735268470937,0.052101,96096.0,96095.0,0.03611906]
[1735268471136,0.02603738,96096.0,96094.0,0.001]
[1735268471338,0.0939441,96100.0,96086.0,0.085]
[1735268471637,0.14612072,96100.0,96097.0,0.01598204]
[1735268471851,0.05217662,96100.0,96097.0,0.003]
[1735268472039,0.0939441,96107.0,96097.0,0.003]
[1735268472238,0.0939441,96107.0,96086.0,0.085]
[1735268472239,0.052104,96091.0,96086.0,0.085]
[1735268472750,0.0949441,96096.0,96073.0,0.00156107]
[1735268472937,0.0939441,96086.0,96077.0,0.03345308]
[1735268473245,0.0939441,96086.0,96078.0,0.03345308]
[1735268473431,0.0939441,96086.0,96073.0,0.00156107]
[1735268473636,0.05211,96081.0,96077.0,0.03346665]
[1735268473943,0.05211,96081.0,96073.0,0.00156107]
[1735268474537,0.05211,96081.0,96077.0,0.01784986]
[1735268474738,0.05211,96081.0,96078.0,0.01784986]
[1735268474936,0.05211,96081.0,96079.0,0.01784986]
[1735268475139,0.05211,96081.0,96080.0,0.01784986]
[1735268476634,0.05211,96081.0,96080.0,0.0289328]
[1735268477142,0.001,96081.0,96080.0,0.0289328]
[1735268477338,0.001,96081.0,96080.0,0.02881494]
[1735268477942,0.052109,96082.0,96080.0,0.02881494]
[1735268478249,0.052109,96082.0,96081.0,0.02881494]
[1735268478748,0.10371746,96082.0,96081.0,0.02881494]
[1735268479356,0.05160846,96082.0,96081.0,0.02881494]
[1735268479560,0.052106,96087.0,96081.0,0.04025155]
[1735268479756,0.052106,96087.0,96082.0,0.04025155]
[1735268479956,0.052106,96087.0,96083.0,0.04025155]
[1735268480158,0.052106,96087.0,96084.0,0.04025155]
[1735268480358,0.052106,96087.0,96085.0,0.04025425]
[1735268480557,0.052106,96087.0,96086.0,0.04025425]
[1735268484365,0.052106,96087.0,96086.0,0.05325639]
[1735268484755,0.052106,96087.0,96086.0,0.02444145]
[1735268484956,0.052106,96087.0,96086.0,0.05325141]
[1735268485354,0.053106,96087.0,96086.0,0.05325141]
[1735268485552,0.053106,96087.0,96086.0,0.01143931]
[1735268485766,0.053106,96087.0,96086.0,0.04025131]
[1735268486270,0.053106,96087.0,96086.0,0.0402503]
[1735268486766,0.053106,96087.0,96086.0,0.01147388]
[1735268486969,0.054106,96087.0,96086.0,0.01147388]
[1735268487656,0.054106,96087.0,96086.0,0.04026859]
[1735268488253,0.052106,96087.0,96086.0,0.04026859]
[1735268488469,0.053106,96087.0,96086.0,0.04026859]
[1735268489263,0.053106,96087.0,96086.0,0.01147388]
[1735268489463,0.053106,96087.0,96086.0,0.01149043]
[1735268489769,0.052106,96087.0,96086.0,0.01149043]
[1735268490073,0.053106,96087.0,96086.0,0.01147578]
[1735268490659,0.054106,96087.0,96086.0,0.01147578]
[1735268491565,0.054106,96087.0,96082.0,0.24931851]
[1735268491770,0.052108,96083.0,96082.0,0.24931851]
[1735268492066,0.052108,96083.0,96082.0,0.04028489]
[1735268492268,0.052108,96083.0,96061.0,0.27010732]
[1735268492269,0.3,96083.0,96061.0,0.27010732]
[1735268492469,0.052126,96051.0,96050.0,0.30719013]
[1735268493766,0.052126,96051.0,96044.0,0.58208288]
[1735268493767,0.052129,96045.0,96044.0,0.08728]
[1735268493964,0.052129,96045.0,96044.0,0.0866]
[1735268495665,0.057129,96045.0,96044.0,0.0866]
[1735268496460,0.10126532,96045.0,96044.0,0.0866]
[1735268496862,0.10026532,96045.0,96044.0,0.0866]
[1735268497667,0.10026532,96045.0,96013.0,0.06516932]
[1735268497668,0.05213,96044.0,96013.0,0.06516932]
[1735268497868,0.04613632,96045.0,96005.0,0.03411294]
[1735268497869,0.052143,96020.0,96005.0,0.03411294]
[1735268498074,0.0939441,96015.0,96006.0,0.07192956]
[1735268498258,0.0939441,96015.0,96006.0,0.04118374]
[1735268498564,0.1460891,96015.0,96007.0,0.04118374]
[1735268498866,0.00011573,96014.0,96013.0,0.006]
[1735268499074,0.00011573,96014.0,96013.0,0.05118374]
[1735268499366,0.00011573,96014.0,96013.0,0.04518374]
[1735268499566,0.00011573,96014.0,96013.0,0.004]
[1735268499760,0.00011573,96014.0,96006.0,0.007]
[1735268499961,0.00011573,96014.0,96007.0,0.04517853]
[1735268500371,0.00011573,96014.0,96008.0,0.04117853]
[1735268500574,0.00011573,96014.0,96006.0,0.007]
[1735268500575,0.00011573,96014.0,96009.0,0.04117853]
[1735268500870,0.00011573,96014.0,96013.0,0.003]
[1735268501073,0.00011573,96014.0,96013.0,0.04817853]
[1735268501471,0.00011573,96014.0,96013.0,0.04417853]
[1735268501975,0.00011573,96014.0,96013.0,0.04817853]
[1735268502177,0.052142,96022.0,96013.0,0.04517853]
[1735268502571,0.052142,96022.0,96013.0,0.004]
[1735268502876,0.052142,96022.0,96013.0,0.007]
[1735268503066,0.052142,96022.0,96014.0,0.0903]
[1735268504482,0.052145,96016.0,96015.0,0.01023814]
[1735268504777,0.052145,96016.0,96015.0,0.00323814]
[1735268505677,0.052145,96016.0,96015.0,0.00623814]
[1735268505877,0.09646714,96016.0,96015.0,0.00623814]
[1735268506080,0.09646714,96016.0,96015.0,0.00823814]
[1735268507183,0.09646714,96016.0,96015.0,0.005]
[1735268507777,0.05215,96006.0,96003.0,0.0935]
[1735268508176,0.04532214,96016.0,96003.0,0.0935]
[1735268508369,0.052129,96045.0,96003.0,0.3935]
[1735268508567,0.00056001,96049.0,96020.0,0.0939441]
[1735268508784,0.052127,96049.0,96032.0,0.052136]
[1735268508977,0.00846374,96043.0,96035.0,0.052134]
[1735268509177,0.00846374,96043.0,96033.0,0.0908]
[1735268509783,0.09450411,96050.0,96035.0,0.052134]
[1735268509974,0.0939441,96050.0,96033.0,0.0908]
[1735268510178,0.35072001,96069.0,96040.0,0.052131]
[1735268510179,0.002,96043.0,96040.0,0.052131]
[1735268510380,0.052122,96059.0,96040.0,0.052131]
[1735268511070,0.052124,96055.0,96033.0,0.0908]
[1735268511275,0.001,96043.0,96033.0,0.142935]
[1735268511474,0.001,96043.0,96033.0,0.0908]
[1735268511679,0.001,96043.0,96034.0,0.052135]
[1735268511880,0.14071966,96050.0,96034.0,0.052135]
[1735268512090,0.052124,96054.0,96035.0,0.0952]
[1735268512278,0.052125,96053.0,96035.0,0.0952]
[1735268512677,0.052126,96051.0,96035.0,0.0952]
[1735268512881,0.052127,96048.0,96035.0,0.0952]
[1735268513282,0.052127,96048.0,96035.0,0.0962]
[1735268513783,0.052131,96041.0,96035.0,0.001]
[1735268513986,0.052124,96055.0,96035.0,0.001]
[1735268514187,0.052124,96055.0,96037.0,0.052133]
[1735268514485,0.052124,96055.0,96038.0,0.04115466]
[1735268514687,0.052125,96053.0,96038.0,0.04115466]
[1735268514883,0.052125,96053.0,96039.0,0.04115466]
[1735268515079,0.052125,96053.0,96040.0,0.04115466]
[1735268515473,0.18609359,96060.0,96041.0,0.04115466]
[1735268515474,0.04537393,96060.0,96041.0,0.04115466]
[1735268515679,0.001,96055.0,96042.0,0.05213]
[1735268515879,0.001,96055.0,96040.0,0.14071966]
[1735268516080,0.052116,96068.0,96051.0,0.052125]
[1735268516284,0.002,96053.0,96052.0,0.142525]
[1735268516480,0.04522461,96071.0,96054.0,0.052124]
[1735268516776,0.04522461,96071.0,96055.0,0.01018031]
[1735268516984,0.04522461,96071.0,96056.0,0.01018031]
[1735268517182,0.052117,96067.0,96057.0,0.01018031]
[1735268517387,0.052117,96067.0,96058.0,0.01018031]
[1735268517691,0.052117,96067.0,96059.0,0.01018031]
[1735268517885,0.052117,96067.0,96060.0,0.01018031]
[1735268518086,0.052117,96067.0,96061.0,0.01018031]
[1735268518287,0.052117,96067.0,96062.0,0.01018031]
[1735268518589,0.052117,96067.0,96063.0,0.01018268]
[1735268518891,0.00156257,96071.0,96064.0,0.01018268]
[1735268519097,0.00156257,96071.0,96065.0,0.01018268]
[1735268519280,0.00156257,96071.0,96066.0,0.01018268]
[1735268519593,0.00156257,96071.0,96067.0,0.01018268]
[1735268519794,0.00156257,96071.0,96068.0,0.01018268]
[1735268519994,0.00156257,96071.0,96069.0,0.01018268]
[1735268520179,0.00156257,96071.0,96062.0,0.0885]
[1735268520180,0.00156257,96071.0,96070.0,0.01018268]
[1735268521200,0.00456257,96071.0,96070.0,0.01018268]
[1735268521681,0.00256257,96071.0,96070.0,0.01918268]
[1735268522286,0.00256257,96071.0,96070.0,0.02418268]
[1735268522894,0.04693165,96071.0,96070.0,0.02418268]
[1735268523096,0.00256257,96071.0,96070.0,0.02418268]
[1735268525195,0.04715933,96071.0,96070.0,0.02418268]
[1735268525395,0.00256257,96071.0,96070.0,0.02418268]
[1735268526790,0.04536845,96071.0,96070.0,0.02418268]
[1735268526990,0.23756845,96071.0,96070.0,0.02418268]
[1735268527398,0.23756845,96071.0,96070.0,0.02418147]
[1735268530396,0.23756845,96071.0,96070.0,0.02419819]
[1735268532492,0.04536845,96071.0,96070.0,0.02419819]
[1735268533898,0.04536845,96071.0,96070.0,0.014]
[1735268534202,0.04536845,96071.0,96070.0,0.0241902]
[1735268538403,0.04536845,96071.0,96070.0,0.0658808]
[1735268539509,0.04536845,96071.0,96070.0,0.06591217]
[1735268541108,0.04536845,96071.0,96070.0,0.02422157]
[1735268541911,0.04536845,96071.0,96070.0,0.06609076]
[1735268542408,0.04536845,96071.0,96070.0,0.014]
[1735268542709,0.04536845,96071.0,96070.0,0.02424409]
[1735268542919,0.04536845,96071.0,96070.0,0.014]
[1735268543122,0.04536845,96071.0,96070.0,0.02424435]
[1735268544610,0.04536845,96071.0,96070.0,0.02425147]
[1735268545015,0.04536845,96071.0,96070.0,0.06620843]
[1735268546923,0.04536845,96071.0,96070.0,0.05595696]
[1735268547128,0.04536845,96071.0,96070.0,0.02426266]
[1735268548422,0.13851749,96071.0,96070.0,0.02426266]
[1735268548724,0.13851749,96071.0,96070.0,0.06633542]
[1735268549526,0.04536845,96071.0,96070.0,0.06633542]
[1735268551621,0.04536845,96071.0,96070.0,0.05607116]
[1735268551826,0.04536845,96071.0,96070.0,0.06634542]
[1735268552220,0.04536845,96071.0,96070.0,0.05607116]
[1735268552425,0.04536845,96071.0,96070.0,0.06634307]
[1735268553029,0.13851749,96071.0,96070.0,0.06634307]
[1735268553920,0.13851749,96071.0,96070.0,0.05607116]
[1735268554126,0.13851749,96071.0,96070.0,0.06634243]
[1735268554321,0.13851749,96071.0,96070.0,0.02427127]
[1735268554721,0.13851749,96071.0,96070.0,0.014]
[1735268554922,0.13851749,96071.0,96070.0,0.02426028]
[1735268555524,0.04536845,96071.0,96070.0,0.39664235]
[1735268556828,0.04536845,96071.0,96070.0,0.02426028]
[1735268557531,0.04536845,96071.0,96070.0,0.11656028]
[1735268557832,0.09314904,96080.0,96070.0,0.15860896]
[1735268558026,0.130422,96080.0,96071.0,0.01026892]
[1735268558228,0.130422,96080.0,96072.0,0.01026892]
[1735268558437,0.130422,96080.0,96073.0,0.01026892]
[1735268558630,0.130422,96080.0,96074.0,0.01026892]
[1735268558933,0.130422,96080.0,96070.0,0.1063]
[1735268558934,0.03727296,96080.0,96077.0,0.37238207]
[1735268559119,0.18693959,96090.0,96078.0,0.09866892]
[1735268559120,0.1874996,96090.0,96078.0,0.09866892]
[1735268559323,0.18693959,96090.0,96079.0,0.01026892]
[1735268559530,0.18693959,96090.0,96080.0,0.01026892]
[1735268559725,0.18693959,96090.0,96081.0,0.01026892]
[1735268559933,0.18693959,96090.0,96078.0,0.0884]
[1735268559934,0.052108,96083.0,96082.0,0.01026892]
[1735268561430,0.052108,96083.0,96082.0,0.01026904]
[1735268562031,0.052108,96083.0,96082.0,0.01226904]
[1735268562534,0.052108,96083.0,96082.0,0.01526904]
[1735268563237,0.09379055,96090.0,96082.0,0.01526904]
[1735268563536,0.052104,96091.0,96083.0,0.10756904]
[1735268563742,0.052104,96091.0,96084.0,0.01026904]
[1735268563937,0.052104,96091.0,96083.0,0.0973]
[1735268563938,0.09314904,96096.0,96085.0,0.01026904]
[1735268564134,0.09314904,96096.0,96086.0,0.01026904]
[1735268564435,0.09314904,96096.0,96087.0,0.01026904]
[1735268564635,0.00064,96111.0,96083.0,0.3973]
[1735268564636,0.09314904,96097.0,96088.0,0.05227363]
[1735268564831,0.15524841,96109.0,96089.0,0.10686904]
[1735268565031,0.0382456,96103.0,96090.0,0.05335698]
[1735268565230,0.0382456,96103.0,96098.0,0.0521]
[1735268565435,0.0382456,96103.0,96099.0,0.10816904]
[1735268565633,0.0382456,96103.0,96100.0,0.01026904]
[1735268565830,0.0382456,96103.0,96101.0,0.01026904]
[1735268566030,0.0402456,96103.0,96102.0,0.38265111]
[1735268566431,0.00356158,96103.0,96102.0,0.38265111]
[1735268566835,0.00356158,96103.0,96102.0,0.38262897]
[1735268567341,0.00356158,96103.0,96102.0,0.0102469]
[1735268568738,0.00356158,96103.0,96102.0,0.0112469]
[1735268572946,0.00356158,96103.0,96102.0,0.01123904]
[1735268578737,0.00356158,96103.0,96102.0,0.001]
[1735268578933,0.00356158,96103.0,96102.0,0.01123886]
[1735268579134,0.002,96103.0,96102.0,0.01123886]
[1735268579338,0.002,96103.0,96102.0,0.01123815]
[1735268581447,0.052089,96119.0,96108.0,0.052094]
[1735268581648,0.052089,96119.0,96102.0,0.01123815]
[1735268581649,0.052089,96119.0,96110.0,0.052093]
[1735268581851,0.052089,96119.0,96111.0,0.01023815]
[1735268582155,0.052089,96119.0,96112.0,0.01023815]
[1735268582451,0.08898901,96119.0,96113.0,0.01023815]
[1735268582652,0.08898901,96119.0,96114.0,0.01023815]
[1735268582853,0.03690001,96119.0,96115.0,0.01023815]
[1735268583040,0.052085,96126.0,96116.0,0.01023815]
[1735268583245,0.052085,96126.0,96117.0,0.01023815]
[1735268583449,0.052085,96126.0,96118.0,0.01023815]
[1735268583654,0.052085,96126.0,96119.0,0.01023815]
[1735268583842,0.052085,96126.0,96120.0,0.01023308]
[1735268584055,0.052085,96126.0,96121.0,0.01023308]
[1735268584257,0.052085,96126.0,96122.0,0.01023308]
[1735268584444,0.052085,96126.0,96123.0,0.01023308]
[1735268584645,0.052085,96126.0,96124.0,0.01022669]
[1735268584857,0.052085,96126.0,96125.0,0.01022669]
[1735268585342,0.052085,96126.0,96119.0,0.004]
[1735268585544,0.052085,96126.0,96120.0,0.01023091]
[1735268585754,0.052085,96126.0,96124.0,0.002]
[1735268585962,0.052085,96126.0,96125.0,0.01023091]
[1735268586160,0.13501985,96127.0,96124.0,0.002]
[1735268586347,0.13501985,96127.0,96125.0,0.01022805]
[1735268586548,0.13501985,96127.0,96126.0,0.01022805]
[1735268586749,0.13501985,96127.0,96124.0,0.002]
[1735268586950,0.13501985,96127.0,96125.0,0.01022804]
[1735268587153,0.13501985,96127.0,96126.0,0.01022804]
[1735268587358,0.03771985,96127.0,96126.0,0.01022804]
[1735268587549,0.20731841,96154.0,96126.0,0.01022804]
[1735268587755,0.12412216,96147.0,96138.0,0.052078]
[1735268587954,0.12412216,96147.0,96139.0,0.01022804]
[1735268588251,0.12412216,96147.0,96140.0,0.01022246]
[1735268588460,0.12412216,96147.0,96141.0,0.01022246]
[1735268588645,0.12412216,96147.0,96138.0,0.052078]
[1735268588853,0.03808049,96146.0,96138.0,0.007]
[1735268589053,0.00156092,96146.0,96139.0,0.01022253]
[1735268589253,0.00156092,96146.0,96140.0,0.01022253]
[1735268589553,0.00156092,96146.0,96141.0,0.01022253]
[1735268589753,0.00156092,96146.0,96142.0,0.01022633]
[1735268589960,0.00156092,96146.0,96140.0,0.007]
[1735268590161,0.03885939,96146.0,96140.0,0.007]
[1735268590753,0.03885939,96146.0,96141.0,0.01022273]
[1735268590961,0.03885939,96146.0,96142.0,0.01022273]
[1735268591260,0.09093339,96146.0,96140.0,0.007]
[1735268591564,0.09093339,96146.0,96141.0,0.01022766]
[1735268591755,0.09093339,96146.0,96142.0,0.01022766]
[1735268591948,0.09093339,96146.0,96141.0,0.007]
[1735268592255,0.09093339,96146.0,96142.0,0.01422865]
[1735268592462,0.09093339,96146.0,96142.0,0.004]
[1735268594252,0.09093339,96146.0,96141.0,0.007]
[1735268594253,0.09093339,96146.0,96141.0,0.011]
[1735268594560,0.09093339,96146.0,96142.0,0.007]
[1735268595167,0.09093339,96146.0,96142.0,0.011]
[1735268595465,0.09093339,96146.0,96117.0,0.37238207]
[1735268595466,0.052087,96122.0,96117.0,0.37238207]
[1735268595657,0.052087,96122.0,96118.0,0.01023587]
[1735268595851,0.052087,96122.0,96119.0,0.01023594]
[1735268596052,0.153988,96121.0,96120.0,0.01023594]
[1735268596659,0.1019,96121.0,96120.0,0.01023594]
[1735268597059,0.09379055,96140.0,96120.0,0.01023594]